bitfinex/quotes_SOLUSD_20250819
["timestamp","ask_amount","ask_price","bid_price","bid_amount"]
[1755635994271,11.02480013,178.19,178.13,7.30718555]
[1755635994638,0.71,178.18,178.13,7.30718555]
[1755635994944,0.71,178.17,178.13,7.30718555]
[1755635995746,0.71,178.16,178.13,7.30718555]
[1755635996928,7.24718555,178.18,178.13,7.30718555]
[1755635997263,7.95718555,178.18,178.13,7.96718555]
[1755635997567,0.71,178.18,178.13,7.96718555]
[1755635997739,0.71,178.18,178.14,7.24718555]
[1755635997939,0.71,178.17,178.13,7.30718555]
[1755635998249,0.71,178.16,178.13,7.30718555]
[1755635999157,0.71,178.15,178.13,0.06]
[1755635999546,11.73528512,178.17,178.13,0.06]
[1755635999757,11.02528512,178.17,178.13,0.06]
[1755636000082,0.71,178.16,178.13,0.06]
[1755636000743,3.77809957,178.17,178.13,0.06]
[1755636000950,0.71,178.15,178.13,0.06]
[1755636001260,7.24718555,178.14,178.13,0.06]
[1755636001456,11.02528512,178.14,178.13,0.06]
[1755636001659,7.95718555,178.14,178.13,0.06]
[1755636004944,33.95718555,178.14,178.13,0.06]
[1755636005561,26.71,178.14,178.13,0.06]
[1755636005866,26.0,178.14,178.13,0.06]
[1755636006441,26.72,178.14,178.13,0.06]
[1755636007462,26.0,178.14,178.13,0.06]
[1755636008345,131.0,178.18,178.13,7.99718555]
[1755636008545,131.0,178.18,178.15,7.24718555]
[1755636008767,131.0,178.18,178.15,7.93718555]
[1755636008945,131.03,178.18,178.15,7.93718555]
[1755636009368,131.03,178.18,178.16,7.24718555]
[1755636009369,0.03,178.18,178.16,7.24718555]
[1755636009558,0.03,178.18,178.14,13.59559401]
[1755636009559,0.03,178.18,178.17,7.93718555]
[1755636009881,0.03,178.18,178.17,21.67494113]
[1755636013185,0.03,178.2,178.19,39.59559401]
[1755636013356,0.03,178.2,178.19,87.06494113]
[1755636013556,0.03,178.2,178.19,87.75494113]
[1755636013757,0.03,178.2,178.19,80.50775558]
[1755636013971,0.03,178.2,178.19,87.75494113]
[1755636017453,0.03,178.22,178.2,19.34919868]
[1755636017752,0.03,178.22,178.21,20.98494113]
[1755636017961,11.01657588,178.34,178.25,39.59559401]
[1755636018172,0.72,178.32,178.28,7.24718555]
[1755636018366,0.72,178.31,178.28,7.24718555]
[1755636018547,0.72,178.31,178.29,7.24718555]
[1755636020068,0.72,178.33,178.3,7.24718555]
[1755636020594,138.24718555,178.35,178.3,7.24718555]
[1755636020595,0.72,178.32,178.3,7.24718555]
[1755636021405,0.72,178.31,178.29,7.24718555]
[1755636021564,0.72,178.3,178.29,7.24718555]
[1755636022187,0.72,178.3,178.27,7.24718555]
[1755636022499,0.72,178.29,178.28,7.24718555]
[1755636022873,0.72,178.29,178.27,7.24718555]
[1755636023081,0.72,178.29,178.28,7.24718555]
[1755636023278,3.75908642,178.34,178.26,7.24718555]
[1755636023279,0.72,178.28,178.26,7.24718555]
[1755636023478,0.72,178.27,178.26,7.24718555]
[1755636023890,0.72,178.27,178.25,47.30718555]
[1755636024063,0.72,178.26,178.25,40.06]
[1755636024876,0.72,178.26,178.22,40.06]
[1755636025297,7.96718555,178.26,178.22,40.06]
[1755636025497,0.72,178.25,178.22,40.06]
[1755636025795,0.72,178.24,178.22,40.06]
[1755636026199,0.72,178.23,178.19,7.30718555]
[1755636026377,0.72,178.22,178.19,40.12]
[1755636026579,0.72,178.22,178.19,47.36718555]
[1755636026895,0.72,178.24,178.2,7.24718555]
[1755636027103,26.03,178.29,178.22,7.24718555]
[1755636027301,0.72,178.26,178.22,7.24718555]
[1755636027597,0.72,178.26,178.22,47.30718555]
[1755636027968,26.72,178.25,178.22,47.30718555]
[1755636028499,7.24718555,178.28,178.24,7.24718555]
[1755636028500,0.72,178.28,178.24,7.24718555]
[1755636028691,0.03,178.29,178.26,7.24718555]
[1755636028871,0.72,178.28,178.26,7.24718555]
[1755636029195,0.03,178.29,178.26,7.24718555]
[1755636029496,0.72,178.28,178.25,40.06]
[1755636029796,7.24718555,178.27,178.25,40.06]
[1755636030096,0.72,178.26,178.21,7.24718555]
[1755636030288,0.72,178.25,178.22,40.06]
[1755636030488,0.72,178.27,178.23,7.24718555]
[1755636030687,0.72,178.26,178.23,7.24718555]
[1755636031001,0.72,178.26,178.22,47.30718555]
[1755636031200,0.72,178.26,178.22,40.06]
[1755636031379,0.72,178.26,178.22,47.30718555]
[1755636032095,26.03,178.29,178.22,47.30718555]
[1755636032302,0.72,178.25,178.22,47.30718555]
[1755636033499,0.72,178.24,178.22,40.06]
[1755636033682,0.72,178.26,178.22,47.30718555]
[1755636034005,0.72,178.26,178.22,47.99718555]
[1755636035606,7.94718555,178.28,178.22,47.99718555]
[1755636035913,7.94718555,178.28,178.23,7.24718555]
[1755636036078,7.24718555,178.28,178.23,7.24718555]
[1755636036286,0.7,178.27,178.23,7.24718555]
[1755636036996,26.03,178.29,178.23,20.84277956]
[1755636037199,26.0,178.27,178.24,7.24718555]
[1755636037498,26.0,178.27,178.23,14.25559401]
[1755636037499,0.03,178.29,178.26,7.24718555]
[1755636037687,0.03,178.29,178.28,7.24718555]
[1755636039687,0.03,178.29,178.28,7.90718555]
[1755636040083,0.03,178.29,178.28,61.68494113]
[1755636040388,0.03,178.29,178.28,61.02494113]
[1755636042092,0.03,178.29,178.2,29.72073489]
[1755636042093,0.73,178.29,178.24,7.24718555]
[1755636042291,7.97718555,178.29,178.25,40.04]
[1755636042494,7.94718555,178.28,178.25,40.04]
[1755636042694,0.03,178.29,178.17,0.06]
[1755636042695,7.94718555,178.27,178.19,0.72]
[1755636042881,0.7,178.26,178.21,7.24718555]
[1755636043081,0.7,178.25,178.2,53.63559401]
[1755636043302,7.24718555,178.27,178.21,7.24718555]
[1755636043609,0.7,178.26,178.22,7.24718555]
[1755636043905,7.94718555,178.28,178.23,7.24718555]
[1755636044116,7.94718555,178.28,178.23,7.90718555]
[1755636044303,0.7,178.27,178.23,7.24718555]
[1755636044523,0.7,178.26,178.23,40.04]
[1755636044692,0.7,178.28,178.23,47.28718555]
[1755636044885,0.03,178.29,178.24,7.24718555]
[1755636044886,0.7,178.27,178.24,7.24718555]
[1755636045079,0.73,178.29,178.24,7.24718555]
[1755636045310,0.7,178.28,178.23,40.04]
[1755636045619,0.7,178.27,178.23,40.04]
[1755636045783,7.24718555,178.26,178.23,40.04]
[1755636045984,7.24718555,178.24,178.19,7.30718555]
[1755636046210,0.7,178.25,178.2,47.28718555]
[1755636046598,0.7,178.24,178.2,47.28718555]
[1755636046997,0.7,178.23,178.2,47.28718555]
[1755636047417,0.7,178.23,178.2,40.04]
[1755636049513,3.76387369,178.27,178.2,40.04]
[1755636049809,0.7,178.25,178.2,40.04]
[1755636050012,7.94718555,178.25,178.2,40.7]
[1755636050215,7.94718555,178.25,178.2,47.94718555]
[1755636050514,0.7,178.25,178.2,47.94718555]
[1755636050695,7.24718555,178.26,178.2,47.28718555]
[1755636051013,11.01105924,178.27,178.21,8.04934712]
[1755636051197,11.01105924,178.27,178.21,21.64494113]
[1755636052223,3.76387369,178.27,178.22,7.90718555]
[1755636052399,7.27718555,178.29,178.23,61.68494113]
[1755636052600,7.24718555,178.28,178.23,61.68494113]
[1755636052794,7.94718555,178.28,178.23,61.68494113]
[1755636053319,11.7222719,178.28,178.23,61.68494113]
[1755636054492,7.94718555,178.28,178.23,61.68494113]
[1755636055505,11.0522719,178.29,178.24,0.66]
[1755636055914,11.7522719,178.29,178.24,0.66]
[1755636056217,7.24718555,178.28,178.23,61.02494113]
[1755636056422,7.94718555,178.28,178.23,61.68494113]
[1755636056609,7.24718555,178.28,178.24,0.66]
[1755636056920,11.0522719,178.29,178.24,0.66]
[1755636057122,11.7522719,178.29,178.24,0.66]
[1755636057699,7.97718555,178.29,178.24,0.66]
[1755636057899,11.7522719,178.29,178.24,0.66]
[1755636058099,11.7522719,178.29,178.24,7.90718555]
[1755636058608,3.80508635,178.29,178.25,13.73775558]
[1755636058812,0.03,178.29,178.26,7.90718555]
[1755636059020,0.03,178.29,178.26,47.94718555]
[1755636059611,0.03,178.29,178.26,40.04]
[1755636060210,0.73,178.29,178.26,40.04]
[1755636060731,7.94718555,178.28,178.23,7.38934712]
[1755636061034,7.94718555,178.28,178.21,0.66]
[1755636061035,0.7,178.27,178.24,40.04]
[1755636061231,7.24718555,178.28,178.24,40.04]
[1755636061423,0.7,178.27,178.24,40.04]
[1755636062240,7.24718555,178.25,178.2,0.06]
[1755636062437,7.94718555,178.24,178.2,40.1]
[1755636062614,0.7,178.24,178.2,40.1]
[1755636063013,0.7,178.24,178.2,40.76]
[1755636063213,11.7222719,178.26,178.2,48.00718555]
[1755636064722,3.77508635,178.26,178.22,7.24718555]
[1755636064932,0.7,178.28,178.23,47.97718555]
[1755636065225,4.47908374,178.28,178.23,47.97718555]
[1755636065795,0.7,178.27,178.23,40.04]
[1755636067214,11.75626929,178.29,178.24,0.69]
[1755636067416,0.7,178.28,178.24,0.69]
[1755636068321,4.47908374,178.28,178.24,0.69]
[1755636069606,0.7,178.28,178.24,0.69]
[1755636069947,3.80908374,178.29,178.26,7.24718555]
[1755636070098,3.80908374,178.29,178.26,7.93718555]
[1755636070099,0.03,178.29,178.26,7.93718555]
[1755636070297,3.80908374,178.29,178.27,7.24718555]
[1755636070527,0.03,178.29,178.26,47.28718555]
[1755636070734,0.73,178.29,178.26,47.28718555]
[1755636071442,0.73,178.29,178.26,40.04]
[1755636071832,0.03,178.29,178.26,47.28718555]
[1755636072030,0.73,178.29,178.26,47.28718555]
[1755636073518,0.03,178.29,178.26,47.28718555]
[1755636074119,0.03,178.29,178.26,40.04]
[1755636074321,0.03,178.29,178.26,47.97718555]
[1755636075021,0.03,178.29,178.26,47.28718555]
[1755636075360,0.7,178.28,178.23,7.24718555]
[1755636075563,4.47963402,178.28,178.24,40.02]
[1755636075863,7.94718555,178.27,178.24,40.02]
[1755636076022,0.7,178.26,178.24,40.02]
[1755636076352,3.77963402,178.27,178.24,40.02]
[1755636076560,0.7,178.26,178.24,40.02]
[1755636078460,0.7,178.25,178.24,40.02]
[1755636078628,0.7,178.25,178.22,40.08]
[1755636078829,26.03,178.29,178.22,40.08]
[1755636078830,0.7,178.24,178.22,40.08]
[1755636079768,0.7,178.23,178.22,0.06]
[1755636082754,11.72821334,178.23,178.22,0.06]
[1755636083255,7.94718555,178.23,178.22,0.06]
[1755636083445,11.72821334,178.23,178.22,0.06]
[1755636083634,7.94718555,178.23,178.22,0.06]
[1755636083832,11.72821334,178.23,178.22,0.06]
[1755636084047,7.94718555,178.23,178.22,0.06]
[1755636084351,11.72821334,178.23,178.22,0.06]
[1755636084551,7.94718555,178.23,178.22,0.06]
[1755636084753,11.72821334,178.23,178.22,0.06]
[1755636085259,0.7,178.23,178.22,0.06]
[1755636085442,4.48102779,178.23,178.22,0.06]
[1755636086224,3.78102779,178.23,178.22,0.06]
[1755636086536,4.48102779,178.23,178.22,0.06]
[1755636086850,11.72821334,178.23,178.22,0.06]
[1755636088459,3.78102779,178.23,178.22,0.06]
[1755636088641,11.02821334,178.23,178.22,0.06]
[1755636089034,11.72821334,178.23,178.22,0.06]
[1755636094342,7.94718555,178.23,178.22,0.06]
[1755636095169,11.72375327,178.23,178.22,0.06]
[1755636099273,7.94718555,178.23,178.22,0.06]
[1755636099775,7.24718555,178.23,178.22,0.06]
[1755636100548,7.24718555,178.25,178.22,0.75]
[1755636101059,11.02256095,178.25,178.22,0.06]
[1755636101268,7.24718555,178.25,178.22,0.06]
[1755636101475,11.02256095,178.25,178.22,0.75]
[1755636101663,7.24718555,178.25,178.22,0.75]
[1755636101981,0.03,178.27,178.23,0.69]
[1755636102170,7.27718555,178.27,178.23,0.69]
[1755636102360,7.27718555,178.27,178.23,13.59559401]
[1755636102565,0.03,178.27,178.24,0.69]
[1755636103782,7.27718555,178.27,178.24,0.69]
[1755636104086,7.95718555,178.26,178.22,0.06]
[1755636104475,7.95718555,178.26,178.23,13.59559401]
[1755636104871,0.71,178.26,178.23,13.59559401]
[1755636105071,7.95718555,178.26,178.23,13.59559401]
[1755636105584,7.24718555,178.26,178.23,13.59559401]
[1755636107158,0.03,178.27,178.24,0.69]
[1755636107566,0.03,178.27,178.25,40.0]
[1755636107983,7.27718555,178.27,178.25,40.0]
[1755636109071,7.98718555,178.27,178.25,40.0]
[1755636109985,7.27718555,178.27,178.25,40.0]
[1755636111062,0.03,178.27,178.26,0.69]
[1755636111262,0.03,178.27,178.25,40.0]
[1755636112890,7.24718555,178.26,178.25,40.0]
[1755636113888,0.03,178.27,178.25,40.69]
[1755636114092,7.98718555,178.27,178.25,40.0]
[1755636114391,7.24718555,178.26,178.25,40.0]
[1755636114575,7.95718555,178.26,178.25,40.0]
[1755636115385,7.24718555,178.26,178.25,40.0]
[1755636116369,7.95718555,178.26,178.25,40.0]
[1755636116775,11.73413038,178.26,178.25,40.0]
[1755636117870,7.24718555,178.26,178.25,40.0]
[1755636118678,7.95718555,178.26,178.25,40.0]
[1755636118865,11.05413038,178.27,178.25,40.0]
[1755636119287,3.80694483,178.27,178.25,40.0]
[1755636119596,11.05413038,178.27,178.25,40.0]
[1755636119970,7.27718555,178.27,178.25,40.0]
[1755636120576,0.03,178.27,178.25,40.69]
[1755636120894,0.03,178.27,178.26,0.69]
[1755636121101,0.03,178.27,178.26,14.28559401]
[1755636121271,0.03,178.27,178.26,14.42775558]
[1755636121466,0.03,178.27,178.26,14.28559401]
[1755636121692,0.03,178.27,178.26,21.67494113]
[1755636122202,0.03,178.27,178.26,61.65494113]
[1755636123276,0.03,178.27,178.26,54.40775558]
[1755636123586,0.03,178.27,178.26,61.65494113]
[1755636126388,0.03,178.27,178.26,60.82277956]
[1755636126694,0.03,178.27,178.26,53.57559401]
[1755636128485,0.69,178.27,178.26,39.98]
[1755636128719,0.69,178.27,178.25,40.0]
[1755636129022,0.03,178.27,178.25,47.93718555]
[1755636129177,0.03,178.27,178.25,40.69]
[1755636129571,0.03,178.27,178.25,40.0]
[1755636131411,0.03,178.27,178.26,61.49277956]
[1755636131586,0.03,178.27,178.26,61.63494113]
[1755636132879,0.03,178.27,178.26,60.94494113]
[1755636133112,0.03,178.27,178.26,53.55559401]
[1755636133774,0.03,178.27,178.26,60.80277956]
[1755636135019,0.03,178.27,178.26,53.55559401]
[1755636136804,0.69,178.27,178.26,39.96]
[1755636137007,7.93718555,178.27,178.25,79.96]
[1755636137188,0.03,178.27,178.25,40.0]
[1755636138181,0.69,178.27,178.25,40.0]
[1755636139702,0.03,178.27,178.25,40.0]
[1755636140107,0.03,178.27,178.25,40.69]
[1755636140293,0.03,178.27,178.25,40.0]
[1755636141321,0.03,178.27,178.26,61.49277956]
[1755636141694,0.03,178.27,178.26,61.63494113]
[1755636143217,0.03,178.27,178.26,54.38775558]
[1755636143407,0.03,178.27,178.26,61.63494113]
[1755636143587,0.03,178.27,178.26,60.80277956]
[1755636143787,0.03,178.27,178.26,53.55559401]
[1755636145614,0.03,178.27,178.26,53.69775558]
[1755636145786,0.03,178.27,178.26,61.63494113]
[1755636146998,0.03,178.27,178.26,60.94494113]
[1755636147302,0.03,178.27,178.26,53.69775558]
[1755636147918,0.03,178.27,178.26,60.94494113]
[1755636148618,0.69,178.27,178.26,53.55559401]
[1755636150425,0.03,178.27,178.26,53.55559401]
[1755636150801,0.03,178.27,178.26,60.80277956]
[1755636151008,0.03,178.27,178.26,61.49277956]
[1755636151711,0.03,178.27,178.26,60.80277956]
[1755636152228,0.03,178.27,178.26,53.55559401]
[1755636157730,0.03,178.27,178.26,60.80277956]
[1755636158906,0.7,178.27,178.26,60.80277956]
[1755636159112,0.7,178.27,178.26,53.55559401]
[1755636159336,0.03,178.27,178.26,53.55559401]
[1755636159832,0.03,178.27,178.26,60.80277956]
[1755636160710,0.03,178.27,178.26,61.63494113]
[1755636161417,0.03,178.27,178.26,60.94494113]
[1755636162845,0.03,178.27,178.26,53.55559401]
[1755636163016,0.7,178.27,178.26,53.55559401]
[1755636163217,0.7,178.27,178.26,39.96]
[1755636165413,0.03,178.27,178.26,53.55559401]
[1755636165613,0.03,178.27,178.26,60.94494113]
[1755636165834,0.03,178.27,178.26,61.63494113]
[1755636166542,0.03,178.27,178.26,53.69775558]
[1755636166942,0.03,178.27,178.26,60.94494113]
[1755636169348,0.03,178.27,178.26,61.63494113]
[1755636170243,0.03,178.27,178.26,60.94494113]
[1755636170433,0.03,178.27,178.26,61.63494113]
[1755636172951,0.03,178.27,178.26,60.94494113]
[1755636174552,0.03,178.27,178.26,61.63494113]
[1755636179154,0.03,178.27,178.26,60.94494113]
[1755636184260,0.03,178.27,178.26,53.69775558]
[1755636184433,0.03,178.27,178.26,60.94494113]
[1755636187965,0.75,178.27,178.26,53.69775558]
[1755636188137,0.75,178.27,178.26,53.55559401]
[1755636188552,0.75,178.27,178.26,53.69775558]
[1755636189060,0.75,178.27,178.25,40.0]
[1755636189243,0.75,178.27,178.26,39.88]
[1755636189662,11.78510948,178.27,178.26,39.88]
[1755636189884,4.53792393,178.27,178.26,39.88]
[1755636190070,11.78510948,178.27,178.26,39.88]
[1755636190967,11.78510948,178.27,178.25,40.0]
[1755636191187,11.75510948,178.26,178.25,40.0]
[1755636197458,7.96718555,178.26,178.25,40.0]
[1755636198743,11.74541353,178.26,178.25,40.0]
[1755636198944,11.05530067,178.27,178.25,40.0]
[1755636199142,0.03,178.27,178.25,40.0]
[1755636200647,0.03,178.27,178.26,54.17559401]
[1755636200853,0.03,178.27,178.26,54.31775558]
[1755636201173,0.03,178.27,178.26,61.56494113]
[1755636201355,0.03,178.27,178.26,54.31775558]
[1755636201561,0.03,178.27,178.26,61.56494113]
[1755636203467,0.03,178.27,178.26,53.61775558]
[1755636203674,0.75,178.27,178.26,39.88]
[1755636204587,0.75,178.27,178.25,40.0]
[1755636204760,7.27718555,178.27,178.25,79.88]
[1755636204968,7.99718555,178.27,178.25,79.88]
[1755636206085,0.03,178.27,178.25,79.88]
[1755636207404,0.72,178.26,178.25,79.88]
[1755636207917,0.72,178.26,178.25,40.0]
[1755636208078,7.27718555,178.27,178.25,40.0]
[1755636208404,7.99718555,178.27,178.25,40.0]
[1755636209199,0.03,178.27,178.26,39.86]
[1755636210117,0.03,178.27,178.26,53.59775558]
[1755636210297,0.03,178.27,178.26,54.29775558]
[1755636211503,0.03,178.27,178.26,53.59775558]
[1755636214405,0.7,178.27,178.26,39.86]
[1755636214877,0.03,178.27,178.26,39.86]
[1755636215277,7.94718555,178.27,178.26,39.86]
[1755636215518,7.94718555,178.27,178.25,79.86]
[1755636215812,0.7,178.27,178.25,79.86]
[1755636216606,0.03,178.27,178.25,79.86]
[1755636216783,0.03,178.27,178.25,80.53]
[1755636216984,0.03,178.27,178.25,79.86]
[1755636217645,0.7,178.27,178.25,79.86]
[1755636218329,0.67,178.26,178.25,79.86]
[1755636220083,0.03,178.27,178.25,79.86]
[1755636220424,0.7,178.27,178.25,79.86]
[1755636220798,0.67,178.26,178.25,79.86]
[1755636221003,0.67,178.26,178.25,40.0]
[1755636221396,7.91718555,178.26,178.25,40.0]
[1755636221801,0.67,178.26,178.25,40.0]
[1755636222019,11.05433374,178.27,178.25,40.0]
[1755636222219,7.91718555,178.26,178.25,40.0]
[1755636223495,37.696254,178.26,178.25,40.0]
[1755636224101,77.556254,178.26,178.25,40.0]
[1755636227838,26.0,178.23,178.22,0.06]
[1755636228016,26.0,178.23,178.2,0.06]
[1755636228017,69.76123002,178.23,178.2,0.06]
[1755636228214,14.4943711,178.21,178.2,0.06]
[1755636228441,18.27343955,178.21,178.2,0.06]
[1755636228637,11.696254,178.21,178.2,0.06]
[1755636230159,51.556254,178.21,178.2,0.06]
[1755636230317,47.77718555,178.21,178.2,0.06]
[1755636231631,73.77718555,178.21,178.2,0.06]
[1755636232017,77.55010665,178.21,178.2,0.06]
[1755636232349,51.55010665,178.21,178.2,0.06]
[1755636233643,47.77718555,178.21,178.2,0.06]
[1755636235946,51.54644054,178.21,178.2,0.06]
[1755636236150,47.77718555,178.21,178.2,0.06]
[1755636237675,51.54436691,178.21,178.2,0.06]
[1755636242991,51.68652848,178.21,178.2,0.06]
[1755636243161,51.68652848,178.21,178.19,0.06]
[1755636243162,28.23212668,178.2,178.19,0.06]
[1755636243368,32.66930804,178.2,178.19,0.06]
[1755636243586,11.82652848,178.2,178.19,0.06]
[1755636243787,51.52436691,178.2,178.19,0.06]
[1755636244670,11.68436691,178.2,178.19,0.06]
[1755636244876,47.08718555,178.2,178.19,0.06]
[1755636245177,50.85436691,178.2,178.19,0.06]
[1755636245575,47.08718555,178.2,178.19,0.06]
[1755636246763,47.79718555,178.2,178.19,0.06]
[1755636247487,51.55573942,178.2,178.19,0.06]
[1755636250314,11.00573942,178.2,178.19,0.06]
[1755636250477,47.79718555,178.2,178.19,0.06]
[1755636250680,51.55573942,178.2,178.19,0.06]
[1755636251085,50.84573942,178.2,178.19,0.06]
[1755636251601,47.08718555,178.2,178.19,0.06]
[1755636253116,0.03,178.25,178.19,0.06]
[1755636253117,0.74,178.25,178.19,0.74]
[1755636253282,0.74,178.25,178.19,7.98718555]
[1755636253283,47.08718555,178.24,178.19,7.98718555]
[1755636253596,39.84,178.24,178.2,7.92718555]
[1755636253905,170.84,178.24,178.21,0.68]
[1755636254108,131.0,178.24,178.21,0.68]
[1755636254319,131.0,178.24,178.22,0.68]
[1755636254604,47.08718555,178.23,178.19,0.06]
[1755636254821,7.24718555,178.22,178.19,0.06]
[1755636254980,7.24718555,178.21,178.19,0.06]
[1755636257197,47.08718555,178.21,178.19,0.06]
[1755636257397,39.84,178.21,178.2,0.68]
[1755636257606,47.08718555,178.21,178.19,0.06]
[1755636257989,7.24718555,178.21,178.19,0.06]
[1755636258510,138.95718555,178.2,178.19,0.06]
[1755636258706,182.56071029,178.2,178.19,0.06]
[1755636259319,142.01071029,178.2,178.19,0.06]
[1755636259604,182.54071029,178.2,178.19,0.06]
[1755636260112,181.83071029,178.2,178.19,0.06]
[1755636260923,131.0,178.2,178.19,0.74]
[1755636261809,131.0,178.2,178.19,7.98718555]
[1755636262190,131.0,178.2,178.19,0.74]
[1755636262492,7.24718555,178.23,178.19,0.74]
[1755636262717,7.24718555,178.23,178.2,0.68]
[1755636263163,7.24718555,178.22,178.19,0.06]
[1755636263848,4.47944287,178.23,178.19,0.06]
[1755636263849,7.24718555,178.21,178.19,0.06]
[1755636264049,33.24718555,178.21,178.19,0.06]
[1755636264957,26.0,178.21,178.19,0.06]
[1755636265154,33.24718555,178.21,178.19,0.06]
[1755636266758,26.71,178.21,178.19,0.06]
[1755636266963,26.0,178.21,178.19,0.06]
[1755636267135,26.0,178.21,178.19,0.74]
[1755636267753,26.0,178.21,178.19,0.06]
[1755636268656,33.24718555,178.21,178.19,0.06]
[1755636268840,26.0,178.21,178.19,0.06]
[1755636269043,4.74422277,178.25,178.2,0.68]
[1755636269044,7.24718555,178.23,178.2,0.68]
[1755636269371,3.77856227,178.22,178.21,0.68]
[1755636269660,11.02574782,178.23,178.19,0.06]
[1755636269828,11.02574782,178.22,178.19,0.06]
[1755636270029,7.24718555,178.22,178.19,0.06]
[1755636270259,11.02574782,178.22,178.19,0.06]
[1755636270461,7.24718555,178.21,178.19,0.06]
[1755636270639,11.73574782,178.21,178.19,0.06]
[1755636270837,7.24718555,178.21,178.19,0.06]
[1755636271041,11.02574782,178.21,178.19,0.06]
[1755636271241,7.24718555,178.21,178.19,0.06]
[1755636271566,3.77856227,178.21,178.19,0.06]
[1755636271732,7.24718555,178.21,178.19,0.06]
[1755636271934,11.02574782,178.21,178.19,0.06]
[1755636272643,142.73574782,178.2,178.19,0.06]
[1755636273645,135.48856227,178.2,178.19,0.06]
[1755636273847,142.73574782,178.2,178.19,0.06]
[1755636274258,182.52574782,178.2,178.19,0.06]
[1755636275970,51.52574782,178.2,178.19,0.06]
[1755636292185,50.84574782,178.2,178.19,0.06]
[1755636293685,50.84574782,178.2,178.19,0.78]
[1755636293885,11.02574782,178.2,178.19,0.78]
[1755636294910,3.77856227,178.2,178.19,0.78]
[1755636295116,11.02574782,178.23,178.19,0.78]
[1755636295403,3.77856227,178.22,178.19,0.78]
[1755636296606,3.77856227,178.23,178.19,0.78]
[1755636296801,3.77856227,178.22,178.19,0.78]
[1755636296982,3.77856227,178.23,178.19,0.78]
[1755636297182,7.27718555,178.24,178.19,0.78]
[1755636297391,3.78101098,178.23,178.19,0.78]
[1755636298097,11.02819653,178.23,178.19,0.78]
[1755636299691,3.78101098,178.23,178.19,8.02718555]
[1755636299898,3.78101098,178.23,178.2,0.72]
[1755636300402,0.03,178.24,178.2,7.96718555]
[1755636300597,0.03,178.24,178.21,21.70494113]
[1755636300801,0.03,178.24,178.21,0.14216157]
[1755636300992,0.03,178.24,178.22,0.72]
[1755636301191,7.27718555,178.24,178.21,0.14216157]
[1755636301390,7.24718555,178.23,178.2,0.72]
[1755636301591,11.05642816,178.24,178.2,0.72]
[1755636301791,0.03,178.24,178.21,0.72]
[1755636302003,0.03,178.24,178.22,0.72]
[1755636302989,0.03,178.24,178.23,0.72]
[1755636303897,0.03,178.24,178.23,14.45775558]
[1755636304114,0.03,178.24,178.23,21.70494113]
[1755636306513,0.03,178.24,178.23,14.45775558]
[1755636306916,0.03,178.24,178.22,13.73775558]
[1755636307123,0.03,178.24,178.22,14.44775558]
[1755636308315,0.03,178.24,178.22,0.14216157]
[1755636309115,0.03,178.24,178.23,0.71]
[1755636310300,0.03,178.24,178.23,21.69494113]
[1755636310491,0.73,178.24,178.21,0.14216157]
[1755636310695,7.97718555,178.24,178.21,13.73775558]